[Event "Early-Titled-Tuesday-Blitz-April-23-2024"]
[Site "Chess.com"]
[Date "2024.04.23"]
[Round "6"]
[White "sokidze"]
[Black "ScofieldMichael01"]
[Result "1-0"]
[WhiteElo "2811"]
[BlackElo "2600"]
[TimeControl "180+1"]
[EndTime "9:06:56 PDT"]
[Termination "sokidze won by resignation"]

1. e4 {[%clk 0:03:00.9]} 1... Nf6 {[%clk 0:02:55]} 2. e5 {[%clk 0:02:59.1]} 2...
Nd5 {[%clk 0:02:53.8]} 3. d4 {[%clk 0:02:59]} 3... d6 {[%clk 0:02:53.3]} 4. c4
{[%clk 0:02:59.4]} 4... Nb6 {[%clk 0:02:53.1]} 5. exd6 {[%clk 0:03:00.1]} 5...
cxd6 {[%clk 0:02:53.1]} 6. Nc3 {[%clk 0:03:00.4]} 6... g6 {[%clk 0:02:53.5]} 7.
Be3 {[%clk 0:03:00.7]} 7... Bg7 {[%clk 0:02:54.2]} 8. Rc1 {[%clk 0:03:01]} 8...
Nc6 {[%clk 0:02:54.1]} 9. b3 {[%clk 0:02:54.5]} 9... d5 {[%clk 0:02:54.1]} 10.
c5 {[%clk 0:02:51.5]} 10... e5 {[%clk 0:02:54.6]} 11. Nge2 {[%clk 0:02:29.1]}
11... O-O {[%clk 0:02:54.3]} 12. cxb6 {[%clk 0:02:09.9]} 12... exd4 {[%clk
0:02:54.1]} 13. Nxd4 {[%clk 0:02:04.5]} 13... Bxd4 {[%clk 0:02:53.7]} 14. Bxd4
{[%clk 0:02:04.1]} 14... Qh4 {[%clk 0:02:54.4]} 15. Nb5 {[%clk 0:00:53.4]} 15...
Bg4 {[%clk 0:02:43.3]} 16. g3 {[%clk 0:00:41.8]} 16... Qh5 {[%clk 0:02:27.7]}
17. Be2 {[%clk 0:00:40.1]} 17... Bxe2 {[%clk 0:02:17.6]} 18. Qxe2 {[%clk
0:00:39.8]} 18... Rae8 {[%clk 0:01:39.7]} 19. Be3 {[%clk 0:00:39.2]} 19... Qxe2+
{[%clk 0:01:37.3]} 20. Kxe2 {[%clk 0:00:39.4]} 20... d4 {[%clk 0:01:38.2]} 21.
Rxc6 {[%clk 0:00:38.7]} 21... bxc6 {[%clk 0:01:36.4]} 22. Nxd4 {[%clk
0:00:39.2]} 22... c5 {[%clk 0:01:33.2]} 23. Nb5 {[%clk 0:00:37.7]} 23... axb6
{[%clk 0:01:33.2]} 24. Rd1 {[%clk 0:00:37.6]} 24... Ra8 {[%clk 0:01:32.9]} 25.
a3 {[%clk 0:00:28.6]} 25... Ra5 {[%clk 0:01:32.2]} 26. a4 {[%clk 0:00:29.1]}
26... c4 {[%clk 0:01:32.3]} 27. Bxb6 {[%clk 0:00:28.7]} 27... Ra6 {[%clk
0:01:31]} 28. a5 {[%clk 0:00:28.4]} 28... cxb3 {[%clk 0:01:31]} 29. Rb1 {[%clk
0:00:26.5]} 29... Re8+ {[%clk 0:01:28.9]} 30. Kf1 {[%clk 0:00:26.4]} 30... Re5
{[%clk 0:01:25.4]} 31. Nc7 {[%clk 0:00:20.1]} 31... Raxa5 {[%clk 0:01:21]} 32.
Bxa5 {[%clk 0:00:20.8]} 32... Rxa5 {[%clk 0:01:21.7]} 33. Rxb3 {[%clk
0:00:21.5]} 33... Rc5 {[%clk 0:01:22.2]} 34. Nb5 {[%clk 0:00:21.5]} 34... Rc2
{[%clk 0:01:21.7]} 35. Kg2 {[%clk 0:00:21.9]} 35... Kg7 {[%clk 0:01:22.6]} 36.
Nd4 {[%clk 0:00:22.3]} 36... h5 {[%clk 0:01:23.5]} 37. Nxc2 {[%clk 0:00:22.3]}
1-0

[Event "Early-Titled-Tuesday-Blitz-April-23-2024"]
[Site "Chess.com"]
[Date "2024.04.23"]
[Round "6"]
[White "LionelMessiFCB"]
[Black "sterpfi"]
[Result "1-0"]
[WhiteElo "2468"]
[BlackElo "2241"]
[TimeControl "180+1"]
[EndTime "9:06:58 PDT"]
[Termination "LionelMessiFCB won on time"]

1. d4 {[%clk 0:02:58.6]} 1... Nf6 {[%clk 0:02:59.1]} 2. Nc3 {[%clk 0:02:57.9]}
2... d5 {[%clk 0:02:58.5]} 3. Bf4 {[%clk 0:02:57.8]} 3... c5 {[%clk 0:02:54.9]}
4. e4 {[%clk 0:02:57]} 4... Nxe4 {[%clk 0:02:53.3]} 5. Nxe4 {[%clk 0:02:56.2]}
5... dxe4 {[%clk 0:02:54.2]} 6. dxc5 {[%clk 0:02:55.6]} 6... Qa5+ {[%clk
0:02:54.2]} 7. c3 {[%clk 0:02:55.9]} 7... Qxc5 {[%clk 0:02:54.4]} 8. Qa4+ {[%clk
0:02:56.4]} 8... Nc6 {[%clk 0:02:51.2]} 9. Qxe4 {[%clk 0:02:54.2]} 9... g6
{[%clk 0:02:50.2]} 10. Nf3 {[%clk 0:02:48.9]} 10... Bg7 {[%clk 0:02:50]} 11. Qc4
{[%clk 0:02:44.5]} 11... Qb6 {[%clk 0:02:24.7]} 12. O-O-O {[%clk 0:02:36.6]}
12... Be6 {[%clk 0:02:04.7]} 13. Qb5 {[%clk 0:02:35.5]} 13... Bxa2 {[%clk
0:01:54.7]} 14. Be3 {[%clk 0:02:22.6]} 14... Qxb5 {[%clk 0:01:47.7]} 15. Bxb5
{[%clk 0:02:23.5]} 15... Bb3 {[%clk 0:01:43.6]} 16. Rde1 {[%clk 0:02:22.3]}
16... O-O {[%clk 0:01:27.1]} 17. Bc5 {[%clk 0:02:04.7]} 17... Rfc8 {[%clk
0:00:47]} 18. Bxe7 {[%clk 0:01:59.8]} 18... Nxe7 {[%clk 0:00:30.1]} 19. Rxe7
{[%clk 0:02:00.7]} 19... a6 {[%clk 0:00:30.5]} 20. Bd3 {[%clk 0:01:57.8]} 20...
b5 {[%clk 0:00:29.5]} 21. Be4 {[%clk 0:01:51]} 21... Rab8 {[%clk 0:00:26.3]} 22.
Bb7 {[%clk 0:01:49.3]} 22... Rc5 {[%clk 0:00:16.4]} 23. Nd2 {[%clk 0:01:42.9]}
23... Be6 {[%clk 0:00:10.5]} 24. Ne4 {[%clk 0:01:30.3]} 24... Rc4 {[%clk
0:00:05.9]} 25. Nd6 {[%clk 0:01:23.4]} 1-0

[Event "Early-Titled-Tuesday-Blitz-April-23-2024"]
[Site "Chess.com"]
[Date "2024.04.23"]
[Round "6"]
[White "Larkin-Vladislav"]
[Black "TokChess"]
[Result "1-0"]
[WhiteElo "2878"]
[BlackElo "2613"]
[TimeControl "180+1"]
[EndTime "9:06:59 PDT"]
[Termination "Larkin-Vladislav won by resignation"]

1. d4 {[%clk 0:02:59.4]} 1... Nf6 {[%clk 0:02:58.4]} 2. Nc3 {[%clk 0:02:58.5]}
2... d6 {[%clk 0:02:56.7]} 3. e4 {[%clk 0:02:57.8]} 3... Nbd7 {[%clk 0:02:57]}
4. g4 {[%clk 0:02:57.4]} 4... g6 {[%clk 0:02:56.6]} 5. h3 {[%clk 0:02:57]} 5...
Bg7 {[%clk 0:02:55.3]} 6. Bg2 {[%clk 0:02:57.4]} 6... e5 {[%clk 0:02:54.2]} 7.
Nge2 {[%clk 0:02:51.9]} 7... O-O {[%clk 0:02:51.8]} 8. O-O {[%clk 0:02:49.1]}
8... c6 {[%clk 0:02:51.1]} 9. a4 {[%clk 0:02:46.1]} 9... a5 {[%clk 0:02:47.6]}
10. f4 {[%clk 0:02:36.6]} 10... exd4 {[%clk 0:02:47.3]} 11. Nxd4 {[%clk
0:02:37.5]} 11... Re8 {[%clk 0:02:39.2]} 12. g5 {[%clk 0:02:13.3]} 12... Nh5
{[%clk 0:02:39.2]} 13. Nf5 {[%clk 0:02:10.5]} 13... gxf5 {[%clk 0:02:10.2]} 14.
Qxh5 {[%clk 0:02:09.9]} 14... Nf8 {[%clk 0:02:05.1]} 15. Kh2 {[%clk 0:01:52.6]}
15... Qb6 {[%clk 0:01:58.3]} 16. Ra3 {[%clk 0:01:47.4]} 16... Ng6 {[%clk
0:01:55.3]} 17. Rb3 {[%clk 0:01:44.3]} 17... Qc5 {[%clk 0:01:45]} 18. exf5
{[%clk 0:01:25.4]} 18... Bxf5 {[%clk 0:01:45.9]} 19. Rxb7 {[%clk 0:01:25.3]}
19... Bxc2 {[%clk 0:01:41.8]} 20. Qg4 {[%clk 0:01:05]} 20... Bd3 {[%clk
0:01:36.5]} 21. Rf3 {[%clk 0:00:55.2]} 21... Re1 {[%clk 0:01:28.5]} 22. Rxd3
{[%clk 0:00:41.4]} 22... Qg1+ {[%clk 0:01:17.2]} 23. Kg3 {[%clk 0:00:41.4]}
23... Rxc1 {[%clk 0:01:18.1]} 24. Ne2 {[%clk 0:00:36.7]} 24... Qe1+ {[%clk
0:01:15.2]} 25. Kh2 {[%clk 0:00:37.3]} 25... Rc2 {[%clk 0:01:10.4]} 26. Re3
{[%clk 0:00:36.1]} 26... Nxf4 {[%clk 0:01:03.3]} 27. Qxf4 {[%clk 0:00:30.7]}
27... Be5 {[%clk 0:01:01.9]} 28. Rxe5 {[%clk 0:00:30.9]} 28... dxe5 {[%clk
0:00:59.2]} 29. Qxf7+ {[%clk 0:00:30.9]} 1-0

[Event "Early-Titled-Tuesday-Blitz-April-23-2024"]
[Site "Chess.com"]
[Date "2024.04.23"]
[Round "6"]
[White "ZachHKL"]
[Black "zverr1"]
[Result "0-1"]
[WhiteElo "2310"]
[BlackElo "2488"]
[TimeControl "180+1"]
[EndTime "9:07:00 PDT"]
[Termination "zverr1 won by resignation"]

1. c4 {[%clk 0:03:00.9]} 1... c5 {[%clk 0:02:58.8]} 2. g3 {[%clk 0:03:01.3]}
2... Nc6 {[%clk 0:02:58.6]} 3. Bg2 {[%clk 0:03:01.8]} 3... g6 {[%clk 0:02:59.4]}
4. Nf3 {[%clk 0:03:02]} 4... Bg7 {[%clk 0:03:00.1]} 5. Kf1 {[%clk 0:03:02.5]}
5... e5 {[%clk 0:03:00.8]} 6. d3 {[%clk 0:03:02]} 6... d6 {[%clk 0:03:00]} 7.
Nc3 {[%clk 0:03:02.4]} 7... Nge7 {[%clk 0:03:00.2]} 8. Kg1 {[%clk 0:03:02.7]}
8... O-O {[%clk 0:02:59.4]} 9. h3 {[%clk 0:03:03.2]} 9... h6 {[%clk 0:02:59.9]}
10. Kh2 {[%clk 0:03:03.7]} 10... Be6 {[%clk 0:03:00.7]} 11. Re1 {[%clk
0:03:04.2]} 11... d5 {[%clk 0:02:59.1]} 12. cxd5 {[%clk 0:03:02.8]} 12... Nxd5
{[%clk 0:03:00]} 13. Bd2 {[%clk 0:03:03.1]} 13... Rc8 {[%clk 0:02:57]} 14. Rc1
{[%clk 0:03:02]} 14... b6 {[%clk 0:02:56.7]} 15. a3 {[%clk 0:03:01.4]} 15... Kh7
{[%clk 0:02:52.4]} 16. Nxd5 {[%clk 0:02:56.2]} 16... Bxd5 {[%clk 0:02:52.5]} 17.
Bc3 {[%clk 0:02:56.6]} 17... Re8 {[%clk 0:02:49.2]} 18. Nd2 {[%clk 0:02:54.3]}
18... Bxg2 {[%clk 0:02:48.4]} 19. Kxg2 {[%clk 0:02:55.2]} 19... Qd5+ {[%clk
0:02:48.5]} 20. Kh2 {[%clk 0:02:54]} 20... f5 {[%clk 0:02:42.5]} 21. Qb3 {[%clk
0:02:49.9]} 21... Qd7 {[%clk 0:02:21]} 22. Rcd1 {[%clk 0:02:44]} 22... Rcd8
{[%clk 0:02:14.2]} 23. a4 {[%clk 0:02:40.2]} 23... Nd4 {[%clk 0:02:07.4]} 24.
Bxd4 {[%clk 0:02:36.8]} 24... Qxd4 {[%clk 0:02:06.7]} 25. Kg2 {[%clk 0:02:30.5]}
25... e4 {[%clk 0:01:53.7]} 26. dxe4 {[%clk 0:02:26.9]} 26... Qxb2 {[%clk
0:01:53.2]} 27. Qxb2 {[%clk 0:02:24.3]} 27... Bxb2 {[%clk 0:01:54.1]} 28. exf5
{[%clk 0:02:19.9]} 28... Bc3 {[%clk 0:01:53.1]} 29. fxg6+ {[%clk 0:02:19.2]}
29... Kxg6 {[%clk 0:01:52.5]} 30. Nf3 {[%clk 0:02:10.6]} 30... Bxe1 {[%clk
0:01:53.4]} 31. Rxe1 {[%clk 0:02:10.7]} 31... c4 {[%clk 0:01:51.2]} 32. e4
{[%clk 0:02:09.9]} 32... c3 {[%clk 0:01:48.3]} 33. Rc1 {[%clk 0:02:05.7]} 33...
Rc8 {[%clk 0:01:45.9]} 34. e5 {[%clk 0:02:03.3]} 34... Kf5 {[%clk 0:01:34.5]}
35. Kf1 {[%clk 0:01:57.5]} 35... Red8 {[%clk 0:01:31]} 36. Ke2 {[%clk
0:01:57.7]} 36... Ke4 {[%clk 0:01:30.2]} 37. Rb1 {[%clk 0:01:50.6]} 37... c2
{[%clk 0:01:23.5]} 38. Rc1 {[%clk 0:01:48.3]} 38... Rf8 {[%clk 0:00:49.2]} 39.
Ne1 {[%clk 0:01:40.2]} 39... Kxe5 {[%clk 0:00:48.3]} 40. Nxc2 {[%clk 0:01:39.9]}
40... Rc4 {[%clk 0:00:43.6]} 41. f4+ {[%clk 0:01:36.1]} 41... Kf6 {[%clk
0:00:43.1]} 42. Kd3 {[%clk 0:01:26.6]} 42... Rfc8 {[%clk 0:00:41.2]} 43. Kd2
{[%clk 0:01:22.7]} 43... Rxa4 {[%clk 0:00:39.5]} 0-1

[Event "Early-Titled-Tuesday-Blitz-April-23-2024"]
[Site "Chess.com"]
[Date "2024.04.23"]
[Round "6"]
[White "manitodeplomo"]
[Black "JacksterThePro"]
[Result "1/2-1/2"]
[WhiteElo "2622"]
[BlackElo "2479"]
[TimeControl "180+1"]
[EndTime "9:07:04 PDT"]
[Termination "Game drawn by repetition"]

1. d4 {[%clk 0:03:00.9]} 1... Nf6 {[%clk 0:02:58.1]} 2. c4 {[%clk 0:02:58.4]}
2... e6 {[%clk 0:02:56.5]} 3. Nf3 {[%clk 0:02:58.1]} 3... d5 {[%clk 0:02:56.5]}
4. Nc3 {[%clk 0:02:57.8]} 4... c6 {[%clk 0:02:53.4]} 5. Bg5 {[%clk 0:02:56.2]}
5... h6 {[%clk 0:02:45.7]} 6. Bxf6 {[%clk 0:02:53.7]} 6... Qxf6 {[%clk
0:02:45.2]} 7. e3 {[%clk 0:02:53.1]} 7... Nd7 {[%clk 0:02:45.2]} 8. Qc2 {[%clk
0:02:52.1]} 8... g6 {[%clk 0:02:42.1]} 9. O-O-O {[%clk 0:02:45.2]} 9... Bg7
{[%clk 0:02:40.9]} 10. e4 {[%clk 0:02:44.3]} 10... dxe4 {[%clk 0:02:24.4]} 11.
Nxe4 {[%clk 0:02:44]} 11... Qf4+ {[%clk 0:02:24.4]} 12. Kb1 {[%clk 0:02:43.5]}
12... O-O {[%clk 0:02:24]} 13. c5 {[%clk 0:02:15.9]} 13... e5 {[%clk 0:02:13.1]}
14. Nd6 {[%clk 0:02:15.3]} 14... exd4 {[%clk 0:02:04]} 15. Bc4 {[%clk
0:02:13.9]} 15... Nxc5 {[%clk 0:01:40.2]} 16. Nxf7 {[%clk 0:02:00.9]} 16... Kh7
{[%clk 0:01:13.8]} 17. h4 {[%clk 0:01:44.6]} 17... Bf5 {[%clk 0:01:00.8]} 18.
N3g5+ {[%clk 0:01:44.4]} 18... hxg5 {[%clk 0:00:46.1]} 19. hxg5+ {[%clk
0:01:44.2]} 19... Bh6 {[%clk 0:00:46.5]} 20. Rxh6+ {[%clk 0:01:36.7]} 20... Kg7
{[%clk 0:00:44.8]} 21. Bd3 {[%clk 0:01:11.8]} 21... Bxd3 {[%clk 0:00:36.1]} 22.
Rxd3 {[%clk 0:01:11.4]} 22... Nxd3 {[%clk 0:00:33.7]} 23. Qxd3 {[%clk
0:01:10.6]} 23... Qf5 {[%clk 0:00:11.1]} 24. Qxf5 {[%clk 0:01:08]} 24... gxf5
{[%clk 0:00:12]} 25. Ne5 {[%clk 0:01:07.5]} 25... Rae8 {[%clk 0:00:11.2]} 26.
Rg6+ {[%clk 0:01:07]} 26... Kh7 {[%clk 0:00:11.3]} 27. Rh6+ {[%clk 0:01:07]}
27... Kg7 {[%clk 0:00:11.8]} 28. Rg6+ {[%clk 0:01:07]} 28... Kh7 {[%clk
0:00:11.9]} 29. Rh6+ {[%clk 0:01:07.2]} 29... Kg7 {[%clk 0:00:12.5]} 1/2-1/2

[Event "Early-Titled-Tuesday-Blitz-April-23-2024"]
[Site "Chess.com"]
[Date "2024.04.23"]
[Round "6"]
[White "AlexTruskavetsky"]
[Black "Veleamater"]
[Result "1-0"]
[WhiteElo "2682"]
[BlackElo "2443"]
[TimeControl "180+1"]
[EndTime "9:07:09 PDT"]
[Termination "AlexTruskavetsky won by resignation"]

1. d4 {[%clk 0:03:00.9]} 1... d6 {[%clk 0:03:00.9]} 2. e4 {[%clk 0:03:00.8]}
2... g6 {[%clk 0:03:01.6]} 3. f4 {[%clk 0:02:59.2]} 3... Bg7 {[%clk 0:03:01.4]}
4. Nf3 {[%clk 0:02:58.6]} 4... Nf6 {[%clk 0:03:01.9]} 5. Bd3 {[%clk 0:02:57.2]}
5... O-O {[%clk 0:02:59.5]} 6. O-O {[%clk 0:02:56.6]} 6... Nc6 {[%clk
0:03:00.1]} 7. e5 {[%clk 0:02:54.1]} 7... dxe5 {[%clk 0:02:56.1]} 8. fxe5 {[%clk
0:02:53.9]} 8... Nh5 {[%clk 0:02:47.6]} 9. c3 {[%clk 0:02:50.2]} 9... f6 {[%clk
0:02:43.2]} 10. exf6 {[%clk 0:02:49.4]} 10... exf6 {[%clk 0:02:40.4]} 11. Be3
{[%clk 0:02:44.6]} 11... Bg4 {[%clk 0:02:33.6]} 12. h3 {[%clk 0:02:43.9]} 12...
Bxf3 {[%clk 0:02:17.5]} 13. Qxf3 {[%clk 0:02:44.8]} 13... Qd6 {[%clk 0:02:17]}
14. g4 {[%clk 0:02:37.5]} 14... Qg3+ {[%clk 0:02:03.9]} 15. Kh1 {[%clk
0:02:36.9]} 15... Rae8 {[%clk 0:01:48.5]} 16. Bd2 {[%clk 0:02:31.8]} 16... Qd6
{[%clk 0:01:14.7]} 17. gxh5 {[%clk 0:02:31]} 17... f5 {[%clk 0:01:12.1]} 18.
hxg6 {[%clk 0:02:30]} 18... hxg6 {[%clk 0:01:10.5]} 19. Na3 {[%clk 0:02:29.7]}
19... a6 {[%clk 0:01:07.2]} 20. Rg1 {[%clk 0:02:29.1]} 20... b5 {[%clk
0:01:05.1]} 21. Rg2 {[%clk 0:02:28.2]} 21... Ne7 {[%clk 0:00:56]} 22. Rag1
{[%clk 0:02:26.8]} 22... Kf7 {[%clk 0:00:55]} 23. Nc2 {[%clk 0:02:21.6]} 23...
Rh8 {[%clk 0:00:54.8]} 24. Rg3 {[%clk 0:02:17.8]} 24... Rh7 {[%clk 0:00:54.6]}
25. a4 {[%clk 0:02:15.3]} 25... c6 {[%clk 0:00:50]} 26. axb5 {[%clk 0:02:15]}
26... axb5 {[%clk 0:00:50.3]} 27. Bf4 {[%clk 0:02:15.2]} 27... Qd7 {[%clk
0:00:43.1]} 28. Nb4 {[%clk 0:02:15.1]} 28... Reh8 {[%clk 0:00:41.5]} 29. Bc2
{[%clk 0:02:14.7]} 29... g5 {[%clk 0:00:32.8]} 30. Bxg5 {[%clk 0:02:02.3]} 30...
Ng6 {[%clk 0:00:28.5]} 31. Bc1 {[%clk 0:02:00.8]} 31... Nh4 {[%clk 0:00:25.3]}
32. Qf4 {[%clk 0:01:57.1]} 32... Bf6 {[%clk 0:00:23.9]} 33. Bb3+ {[%clk
0:01:46]} 33... Ke7 {[%clk 0:00:20.9]} 34. Re1+ {[%clk 0:01:42.5]} 34... Kf8
{[%clk 0:00:15.1]} 35. Qb8+ {[%clk 0:01:40.7]} 35... Bd8 {[%clk 0:00:14.5]} 36.
Bg5 {[%clk 0:01:40.2]} 36... Rg7 {[%clk 0:00:10.1]} 37. Bxd8 {[%clk 0:01:36.9]}
37... Rxg3 {[%clk 0:00:09.7]} 38. Bf6+ {[%clk 0:01:36.7]} 1-0

[Event "Early-Titled-Tuesday-Blitz-April-23-2024"]
[Site "Chess.com"]
[Date "2024.04.23"]
[Round "6"]
[White "Javadovvv"]
[Black "FXDon77"]
[Result "0-1"]
[WhiteElo "2652"]
[BlackElo "2846"]
[TimeControl "180+1"]
[EndTime "9:07:12 PDT"]
[Termination "FXDon77 won by resignation"]

1. d4 {[%clk 0:02:59]} 1... Nf6 {[%clk 0:02:47.8]} 2. Nf3 {[%clk 0:02:59.4]}
2... d5 {[%clk 0:02:41.9]} 3. Bf4 {[%clk 0:02:59.9]} 3... c5 {[%clk 0:02:39.6]}
4. e3 {[%clk 0:03:00.2]} 4... Nc6 {[%clk 0:02:39]} 5. c3 {[%clk 0:03:00.5]} 5...
Qb6 {[%clk 0:02:39.2]} 6. Qc2 {[%clk 0:03:01]} 6... g6 {[%clk 0:02:37.6]} 7.
Nbd2 {[%clk 0:03:01.1]} 7... Bf5 {[%clk 0:02:38.1]} 8. dxc5 {[%clk 0:03:01.9]}
8... Qxc5 {[%clk 0:02:37.9]} 9. Qb3 {[%clk 0:03:02.2]} 9... Qb6 {[%clk
0:02:30.2]} 10. Be2 {[%clk 0:02:59]} 10... Qxb3 {[%clk 0:02:29.8]} 11. axb3
{[%clk 0:02:59.2]} 11... Nh5 {[%clk 0:02:28.5]} 12. Bg3 {[%clk 0:02:47.4]} 12...
Nxg3 {[%clk 0:02:08.4]} 13. hxg3 {[%clk 0:02:48.3]} 13... e5 {[%clk 0:02:09.1]}
14. b4 {[%clk 0:02:48.4]} 14... e4 {[%clk 0:02:07.9]} 15. Nd4 {[%clk 0:02:44]}
15... Nxd4 {[%clk 0:02:07.5]} 16. exd4 {[%clk 0:02:44.9]} 16... Bd6 {[%clk
0:02:05.3]} 17. O-O {[%clk 0:02:37.9]} 17... h5 {[%clk 0:02:04.1]} 18. Ra5
{[%clk 0:02:37.8]} 18... Be6 {[%clk 0:02:02.1]} 19. Rfa1 {[%clk 0:02:38]} 19...
Kd7 {[%clk 0:02:01]} 20. Rxa7 {[%clk 0:02:37.6]} 20... Rxa7 {[%clk 0:02:00.2]}
21. Rxa7 {[%clk 0:02:38.5]} 21... Kc7 {[%clk 0:01:59.3]} 22. Nb3 {[%clk
0:02:35.6]} 22... Kb8 {[%clk 0:01:57.3]} 23. Ra1 {[%clk 0:02:34.1]} 23... b6
{[%clk 0:01:57.3]} 24. Bb5 {[%clk 0:02:23.9]} 24... Kb7 {[%clk 0:01:57.6]} 25.
Ba6+ {[%clk 0:02:23.8]} 25... Kb8 {[%clk 0:01:57.2]} 26. Bb5 {[%clk 0:02:23.9]}
26... Kb7 {[%clk 0:01:56.8]} 27. Ba6+ {[%clk 0:02:24.1]} 27... Kc7 {[%clk
0:01:51.8]} 28. Bb5 {[%clk 0:02:23]} 28... g5 {[%clk 0:01:47.1]} 29. Ra7+ {[%clk
0:02:10.8]} 29... Kb8 {[%clk 0:01:46.6]} 30. Ra1 {[%clk 0:02:10.3]} 30... h4
{[%clk 0:01:42.8]} 31. gxh4 {[%clk 0:02:06.8]} 31... gxh4 {[%clk 0:01:42.6]} 32.
Bf1 {[%clk 0:02:00.7]} 32... h3 {[%clk 0:01:40.1]} 33. gxh3 {[%clk 0:01:59.4]}
33... f5 {[%clk 0:01:34.4]} 34. Ra6 {[%clk 0:01:56.7]} 34... Bc7 {[%clk
0:01:32.6]} 35. Ra1 {[%clk 0:01:48.4]} 35... f4 {[%clk 0:01:32.4]} 36. Nd2
{[%clk 0:01:42.1]} 36... f3 {[%clk 0:01:31]} 37. c4 {[%clk 0:01:28.1]} 37...
Bxh3 {[%clk 0:01:23.6]} 38. Bxh3 {[%clk 0:01:21.9]} 38... Rxh3 {[%clk
0:01:24.5]} 39. cxd5 {[%clk 0:01:22]} 39... Bh2+ {[%clk 0:01:24.2]} 40. Kf1
{[%clk 0:01:19.3]} 40... Bf4 {[%clk 0:01:21.6]} 41. Ke1 {[%clk 0:01:16.5]} 41...
Rh1+ {[%clk 0:01:19.6]} 42. Nf1 {[%clk 0:01:17]} 42... Kc7 {[%clk 0:01:20]} 43.
Ra8 {[%clk 0:01:03.8]} 43... Bd6 {[%clk 0:01:14.5]} 44. Re8 {[%clk 0:01:01.8]}
44... Bxb4+ {[%clk 0:01:13.2]} 45. Kd1 {[%clk 0:01:01.3]} 45... Rxf1+ {[%clk
0:01:13.9]} 46. Kc2 {[%clk 0:01:01.9]} 46... Rxf2+ {[%clk 0:01:14.3]} 47. Kb3
{[%clk 0:01:01.9]} 47... Re2 {[%clk 0:01:12.3]} 0-1

[Event "Early-Titled-Tuesday-Blitz-April-23-2024"]
[Site "Chess.com"]
[Date "2024.04.23"]
[Round "6"]
[White "NikitaShnadrygin"]
[Black "sergoy"]
[Result "0-1"]
[WhiteElo "2696"]
[BlackElo "2927"]
[TimeControl "180+1"]
[EndTime "9:07:15 PDT"]
[Termination "sergoy won by resignation"]

1. Nf3 {[%clk 0:03:00.6]} 1... d5 {[%clk 0:02:59.4]} 2. g3 {[%clk 0:03:00.9]}
2... g6 {[%clk 0:02:59.8]} 3. Bg2 {[%clk 0:03:01.5]} 3... Bg7 {[%clk 0:02:59.9]}
4. d4 {[%clk 0:03:02.2]} 4... c6 {[%clk 0:02:58.1]} 5. O-O {[%clk 0:03:02.8]}
5... Nf6 {[%clk 0:02:58.3]} 6. b3 {[%clk 0:03:03.3]} 6... O-O {[%clk 0:02:55.7]}
7. Bb2 {[%clk 0:03:03.9]} 7... a5 {[%clk 0:02:53.6]} 8. Nbd2 {[%clk 0:02:53.1]}
8... a4 {[%clk 0:02:53.6]} 9. c4 {[%clk 0:02:53.5]} 9... Nbd7 {[%clk 0:02:52.2]}
10. Bc3 {[%clk 0:02:45.1]} 10... Qb6 {[%clk 0:02:23.9]} 11. b4 {[%clk
0:02:16.1]} 11... Qa6 {[%clk 0:02:20.8]} 12. Ne5 {[%clk 0:02:07.9]} 12... Nxe5
{[%clk 0:02:09.6]} 13. dxe5 {[%clk 0:02:08.2]} 13... Nd7 {[%clk 0:02:04.6]} 14.
cxd5 {[%clk 0:01:53.4]} 14... Nxe5 {[%clk 0:01:56.2]} 15. dxc6 {[%clk
0:01:45.2]} 15... bxc6 {[%clk 0:01:57.1]} 16. Qc1 {[%clk 0:01:08.7]} 16... Bg4
{[%clk 0:01:49.9]} 17. f3 {[%clk 0:00:53.9]} 17... Be6 {[%clk 0:01:46.8]} 18.
Re1 {[%clk 0:00:48.5]} 18... Bd5 {[%clk 0:01:31.3]} 19. a3 {[%clk 0:00:45.7]}
19... Rfd8 {[%clk 0:01:30.8]} 20. Qb2 {[%clk 0:00:38.7]} 20... f6 {[%clk
0:01:22.2]} 21. Kh1 {[%clk 0:00:32.4]} 21... Rd7 {[%clk 0:01:19.1]} 22. Bh3
{[%clk 0:00:27]} 22... Rd6 {[%clk 0:01:16.7]} 23. Rad1 {[%clk 0:00:14.4]} 23...
Rad8 {[%clk 0:01:16.3]} 24. Bf1 {[%clk 0:00:11.4]} 24... Qb7 {[%clk 0:01:12.7]}
25. Bxe5 {[%clk 0:00:11.4]} 25... fxe5 {[%clk 0:01:12]} 26. e4 {[%clk
0:00:11.7]} 26... Bf7 {[%clk 0:01:10.5]} 27. Qc2 {[%clk 0:00:12.3]} 27... Qd7
{[%clk 0:01:09.6]} 28. Re2 {[%clk 0:00:07.9]} 28... Bb3 {[%clk 0:01:09.5]} 29.
Nxb3 {[%clk 0:00:06.4]} 29... Rxd1 {[%clk 0:01:09.8]} 30. Nc5 {[%clk 0:00:06.6]}
30... Rxf1+ {[%clk 0:01:09.2]} 0-1